Workbook

Sheet Control (hidden)
A1: 1

Sheet Souhrn
A4: Souhrnná rekapitulace
B6: Kč | D6: Kč
A7: Položka | B7: bez DPH | C7: DPH | D7: vč. DPH
A8: SKO a Zbytkový | B8: ='SKO a zbytkový'!D50 -> 0 | C8: ='SKO a zbytkový'!E50 -> 0 | D8: ='SKO a zbytkový'!F50 -> 0
A9: Bioodpad | B9: =Bioodpad!D27 -> 0 | C9: =Bioodpad!E27 -> 0 | D9: =Bioodpad!F27 -> 0
A10: Papír | B10: =Papír!D31 -> 0 | C10: =Papír!E31 -> 0 | D10: =Papír!F31 -> 0
A11: Plast | B11: =Plast!D29 -> 0 | C11: =Plast!E29 -> 0 | D11: =Plast!F29 -> 0
A12: Skločiré | B12: =Skločiré!D38 -> 0 | C12: =Skločiré!E38 -> 0 | D12: =Skločiré!F38 -> 0
A13: Sklo barevní | B13: =Sklobarevné!D35 -> 0 | C13: =Sklobarevné!E35 -> 0 | D13: =Sklobarevné!F35 -> 0
A14: Kovy | B14: =Kovy!D23 -> 0 | C14: =Kovy!E23 -> 0 | D14: =Kovy!F23 -> 0
A15: SD | B15: =SD!D68 -> 0 | C15: =SD!E68 -> 0 | D15: =SD!F68 -> 0
A16: Koše | B16: =Koše!D41 -> 0 | C16: =Koše!E41 -> 0 | D16: =Koše!F41 -> 0
A17: Mobilní svozy | B17: =Mobilni!D33 -> 0 | C17: =Mobilni!E33 -> 0 | D17: =Mobilni!F33 -> 0
A18: Celkem | B18: =SUM(B8:B17) -> 0 | C18: =SUM(C8:C17) -> 0 | D18: 0
A20: V & h 0j@uto | B20: V&h0j@uto

Sheet SKO a zbytkový
A1: Jednorázová instalace | C1: bez DPH | E1: 0.21
A2: Směsný komunální odpad a zbytkový odpad - objemy nádob v litrech | B2: kusů | C2: Kč/ks | D2: Kč bez DPH | E2: Kč DPH | F2: Kč vč. DPH
A3: 1100 | B3: 449 | C3: 0 | D3: =C3*B3 -> 0 | E3: =0.21*D3 -> 0 | F3: =E3+D3 -> 0
A4: 110 | B4: 1209 | C4: 0 | D4: =C4*B4 -> 0 | E4: =0.21*D4 -> 0 | F4: =E4+D4 -> 0
A5: 120 | B5: 4017 | C5: 0 | D5: 0 | E5: 0 | F5: 0
A6: 240 | B6: 447 | C6: 0 | D6: 0 | E6: 0 | F6: 0
A7: Celkem | B7: =SUM(B3:B6) -> 6122 | D7: =SUM(D3:D6) -> 0 | E7: =SUM(E3:E6) -> 0 | F7: 0
A9: Nájem nádob | C9: bez DPH | D9: celkem | E9: 0.21 | F9: celkem
A10: objem nádoby v litrech | B10: kusů | C10: Kč/ks/rok | D10: Kč bez DPH | E10: Kč DPH | F10: Kč vč. DPH
A11: 1100 | B11: =B3 -> 449 | C11: 0 | D11: =C11*B11 -> 0 | E11: =0.21*D11 -> 0 | F11: =E11+D11 -> 0
A12: 110 | B12: =B4 -> 1209 | C12: 0 | D12: =C12*B12 -> 0 | E12: =0.21*D12 -> 0 | F12: =E12+D12 -> 0
A13: 120 | B13: =B5 -> 4017 | C13: 0 | D13: 0 | E13: 0 | F13: 0
A14: 240 | B14: =B6 -> 447 | C14: 0 | D14: 0 | E14: 0 | F14: 0
A15: Celkem | B15: =SUM(B11:B14) -> 6122 | D15: =SUM(D11:D14) -> 0 | E15: =SUM(E11:E14) -> 0 | F15: =SUM(F11:F14) -> 0
A17: Sběr. Svoz a odstranění | C17: bez DPH | D17: celkem | E17: 0.15 | F17: celkem
A18: SKO 52 výklopů ročně (objem v litrech jedné nádoby) | B18: kusů | C18: Kč/ks/rok | D18: Kč bez DPH | E18: Kč DPH | F18: Kč vč. DPH
A19: 1100 | B19: 389 | C19: 0 | D19: =C19*B19 -> 0 | E19: =0.15*D19 -> 0 | F19: =E19+D19 -> 0
A20: 110 | B20: 1160 | C20: 0 | D20: =C20*B20 -> 0 | E20: =0.15*D20 -> 0 | F20: =E20+D20 -> 0
A21: 120 | B21: 2381 | C21: 0 | D21: 0 | E21: 0 | F21: 0
A22: 240 | B22: 193 | C22: 0 | D22: 0 | E22: 0 | F22: 0
A23: Celkem | B23: =SUM(B19:B22) -> 4123 | D23: =SUM(D19:D22) -> 0 | E23: =SUM(E19:E22) -> 0 | F23: 0
A25: Sběr. Svoz a odstranění | C25: bez DPH | D25: celkem | E25: 0.15 | F25: celkem
A26: SKO 104 výklopů ročně (objem v litrech jedné nádoby) | B26: kusů | C26: Kč/ks/rok | D26: Kč bez DPH | E26: Kč DPH | F26: Kč vč. DPH
A27: 1100 | B27: 54 | C27: 0 | D27: =C27*B27 -> 0 | E27: =0.15*D27 -> 0 | F27: =E27+D27 -> 0
A28: 120 | B28: 1 | C28: 0 | D28: 0 | E28: 0 | F28: 0
A29: 240 | B29: 13 | C29: 0 | D29: 0 | E29: 0 | F29: 0
A30: Celkem | B30: =SUM(B27:B29) -> 68 | D30: =SUM(D27:D29) -> 0 | E30: =SUM(E27:E29) -> 0 | F30: 0
A32: Sběr. Svoz a odstranění | C32: bez DPH | D32: celkem | E32: 0.15 | F32: celkem
A33: SKO 156 výklopů ročně (objem v litrech) | B33: kusů | C33: Kč/ks/rok | D33: Kč bez DPH | E33: Kč DPH | F33: Kč vč. DPH
A34: 1100 | B34: 5 | C34: 0 | D34: =C34*B34 -> 0 | E34: =0.15*D34 -> 0 | F34: =E34+D34 -> 0
A35: Celkem | B35: 5 | D35: =SUM(D34) -> 0 | E35: =SUM(E34) -> 0 | F35: 0
A37: Sběr. Svoz a odstranění | C37: bez DPH | D37: celkem | E37: 0.15 | F37: celkem
A38: Zbytkový odpad 26 výklopů ročně (objem v litrech jedné nádoby) | B38: kusů | C38: Kč/ks/rok | D38: Kč bez DPH | E38: Kč DPH | F38: Kč vč. DPH
A39: 1100 | B39: 1 | C39: 0 | D39: =C39*B39 -> 0 | E39: =0.15*D39 -> 0 | F39: =E39+D39 -> 0
A40: 110 | B40: 49 | C40: 0 | D40: 0 | E40: 0 | F40: 0
A41: 120 | B41: 1635 | C41: 0 | D41: 0 | E41: 0 | F41: 0
A42: 240 | B42: 241 | C42: 0 | D42: 0 | E42: 0 | F42: 0
A43: Celkem | B43: =SUM(B39:B42) -> 1926 | D43: =SUM(D39:D42) -> 0 | E43: =SUM(E39:E42) -> 0 | F43: 0
D45: celkem | E45: celkem | F45: celkem
A46: Rekapitulace SKO | D46: Kč bez DPH | E46: Kč DPH | F46: Kč vč. DPH
A47: Jednorázová instalace | D47: =D7 -> 0 | E47: =E7 -> 0 | F47: 0
A48: Nájem nádob | D48: =D15 -> 0 | E48: =E15 -> 0 | F48: 0
A49: Sběr. Svoz a odstranění | D49: =D23+D30+D35+D43 -> 0 | E49: =E23+E30+E35+E43 -> 0 | F49: 0
A50: Celkem | D50: =SUM(D47:D49) -> 0 | E50: =SUM(E47:E49) -> 0 | F50: 0

Sheet Bioodpad
A1: Jednorázová instalace BIOODPAD | C1: bez dph | D1: celkem | E1: 0.21 | F1: celkem
A2: (objem v litrech jedné nádoby) | B2: kusů | C2: Kč/ks | D2: Kč bez DPH | E2: Kč DPH | F2: Kč vč. DPH
A3: 240 - horní výklop | B3: 133 | C3: 0 | D3: =C3*B3 -> 0 | E3: =0.21*D3 -> 0 | F3: =E3+D3 -> 0
A4: 120 - horní výklop | B4: 1719 | C4: 0 | D4: =C4*B4 -> 0 | E4: =0.21*D4 -> 0 | F4: =E4+D4 -> 0
A5: 660 - horní výklop | B5: 6 | C5: 0 | D5: 0 | E5: 0 | F5: 0
A6: Celkem | B6: =SUM(B3:B5) -> 1858 | D6: =SUM(D3:D5) -> 0 | E6: =SUM(E3:E5) -> 0 | F6: 0
C8: bez DPH | D8: celkem | E8: 0.21 | F8: celkem
A9: Nájem nádob BIOODPAD - 32 výklopů (objem nádob v litrech) | B9: kusů | C9: Kč/ks/rok | D9: Kč bez DPH | E9: Kč DPH | F9: Kč vč. DPH
A10: 240 - horní výklop | B10: 133 | C10: 0 | D10: =C10*B10 -> 0 | E10: =0.21*D10 -> 0 | F10: =E10+D10 -> 0
A11: 120 - horní výklop | B11: 1719 | C11: 0 | D11: =C11*B11 -> 0 | E11: =0.21*D11 -> 0 | F11: =E11+D11 -> 0
A12: 660 - horní výklop | B12: 6 | C12: 0 | D12: 0 | E12: 0 | F12: 0
A13: Celkem | B13: =SUM(B10:B12) -> 1858 | D13: =SUM(D10:D12) -> 0 | E13: =SUM(E10:E12) -> 0 | F13: 0
A15: Sběr svoz a využítí bioodpad (objem nádob v litrech) | C15: bez DPH | D15: celkem | E15: 0.15 | F15: celkem
A16: 32 výklopů ročně | B16: kusů | C16: Kč/ks/rok | D16: Kč bez DPH | E16: Kč DPH | F16: Kč vč. DPH
A17: 240 - horní výklop | B17: 133 | C17: 0 | D17: =C17*B17 -> 0 | E17: =0.15*D17 -> 0 | F17: =E17+D17 -> 0
A18: 120 - horní výklop | B18: 1719 | C18: 0 | D18: =C18*B18 -> 0 | E18: =0.15*D18 -> 0 | F18: =E18+D18 -> 0
A19: 660 - horní výklop | B19: 6 | C19: 0 | D19: 0 | E19: 0 | F19: 0
A20: Celkem | B20: =SUM(B17:B19) -> 1858 | D20: =SUM(D17:D19) -> 0 | E20: =SUM(E17:E19) -> 0 | F20: 0
D22: celkem | E22: celkem | F22: celkem
A23: Rekapitulace Bioodpad | D23: kč bez DPH | E23: kč DPH | F23: Kč vč.DPH
A24: Jednorázová instalace BIOODPAD | D24: =D6 -> 0 | E24: =E6 -> 0 | F24: 0
A25: Nájem nádob BIOODPAD | D25: =D13 -> 0 | E25: =E13 -> 0 | F25: 0
A26: Sběr, svoz a využití BIOODPAD | D26: =D20 -> 0 | E26: =E20 -> 0 | F26: 0
A27: Celkem | D27: =SUM(D24:D26) -> 0 | E27: =SUM(E24:E26) -> 0 | F27: 0

Sheet Papír
A1: Jednorázová instalace Papír | C1: bez DPH | D1: celkem | E1: 0.21 | F1: celkem
A2: Papír - (objem v litrech jedné nádoby) | B2: kusů | C2: Kč/ks | D2: Kč bez DPH | E2: Kč DPH | F2: Kč vč. DPH
A3: 1100 - horní výklop | B3: 114 | C3: 0 | D3: =C3*B3 -> 0 | E3: =0.21*D3 -> 0 | F3: =E3+D3 -> 0
A4: 240 - horní výklop | B4: 56 | C4: 0 | D4: =C4*B4 -> 0 | E4: =0.21*D4 -> 0 | F4: =E4+D4 -> 0
A5: Celkem | B5: 167 | D5: =SUM(D3:D4) -> 0 | E5: =SUM(E3:E4) -> 0 | F5: 0
C7: Bez DPH | D7: celkem | E7: 0.21 | F7: celkem
A8: Nájem nádob - Papír (objem nádoby v litrech) | B8: kusů | C8: Kč/ks/rok | D8: Kč bez DPH | E8: Kč DPH | F8: Kč vč. DPH
A9: 1100 - horní výklop | B9: 114 | C9: 0 | D9: =C9*B9 -> 0 | E9: =0.21*D9 -> 0 | F9: =E9+D9 -> 0
A10: 240 - horní výklop | B10: 56 | C10: 0 | D10: =C10*B10 -> 0 | E10: =0.21*D10 -> 0 | F10: =E10+D10 -> 0
A11: Celkem | B11: 167 | D11: =SUM(D9:D10) -> 0 | E11: =SUM(E9:E10) -> 0 | F11: 0
A14: Sběr. Svoz a využití Papír | C14: Bez DPH | D14: celkem | E14: 0.15 | F14: celkem
A15: Papír 52 výklopů ročně (objem v litrech jedné nádoby) | B15: kusů | C15: Kč/ks/rok | D15: Kč bez DPH | E15: Kč DPH | F15: Kč vč. DPH
A16: 1100 - horní výklop | B16: 158 | C16: 0 | D16: =C16*B16 -> 0 | E16: =0.15*D16 -> 0 | F16: =E16+D16 -> 0
A17: 240 - horní výklop | B17: 145 | C17: 0 | D17: =C17*B17 -> 0 | E17: =0.15*D17 -> 0 | F17: =E17+D17 -> 0
A18: Celkem | B18: 465 | D18: =SUM(D16:D17) -> 0 | E18: =SUM(E16:E17) -> 0 | F18: 0
A20: Sběr. Svoz a využití Papír | C20: Bez DPH | D20: celkem | E20: 0.15 | F20: celkem
A21: Sběr svoz a využití Papír 104 výklopů ročně ( objem nádob v litrech) | B21: kusů | C21: Kč/ks/rok | D21: Kč bez DPH | E21: Kč DPH | F21: Kč vč. DPH
A22: 1100 - horní výklop | B22: 108 | C22: 0 | D22: =C22*B22 -> 0 | E22: =0.15*D22 -> 0 | F22: =E22+D22 -> 0
A23: 240 - horní výklop | B23: 54 | C23: 0 | D23: =C23*B23 -> 0 | E23: =0.15*D23 -> 0 | F23: =E23+D23 -> 0
A24: Celkem | B24: 3 | D24: =SUM(D22:D23) -> 0 | E24: =SUM(E22:E23) -> 0 | F24: 0
A27: Rekapitulace PAPÍR | D27: Kč bez DPH | E27: Kč DPH | F27: Kč vč. DPH
A28: Jednorázová instalace | D28: =D5 -> 0 | E28: =E5 -> 0 | F28: 0
A29: Nájem nádob | D29: =D11 -> 0 | E29: =E11 -> 0 | F29: 0
A30: Sběr. Svoz a využití | D30: =D18+D24 -> 0 | E30: =E18+E24 -> 0 | F30: 0
A31: Celkem | D31: =SUM(D28:D30) -> 0 | E31: =SUM(E28:E30) -> 0 | F31: 0

Sheet Plast
A1: Jednorázová instalace Plast | C1: bez DPH | D1: celkem | E1: 0.21 | F1: celkem
A2: Plast (objem v litrech jedné nádoby) | B2: kusů | C2: Kč/ks | D2: Kč bez DPH | E2: Kč DPH | F2: Kč vč. DPH
A3: 1100 - horní výklop | B3: 271 | C3: 0 | D3: =C3*B3 -> 0 | E3: =0.21*D3 -> 0 | F3: =E3+D3 -> 0
A4: 240 - horní výklop | B4: 221 | C4: 0 | D4: =C4*B4 -> 0 | E4: =0.21*D4 -> 0 | F4: =E4+D4 -> 0
A5: Celkem | B5: 492 | D5: =SUM(D3:D4) -> 0 | E5: =SUM(E3:E4) -> 0 | F5: 0
C7: Bez DPH | D7: celkem | E7: 0.21 | F7: celkem
A8: Nájem nádob plast (objem nádob v litrech) | B8: kusů | C8: Kč/ks/rok | D8: Kč bez DPH | E8: Kč DPH | F8: Kč vč. DPH
A9: 1100 - horní výklop | B9: 271 | C9: 0 | D9: =C9*B9 -> 0 | E9: =0.21*D9 -> 0 | F9: =E9+D9 -> 0
A10: 240 - horní výklop | B10: 221 | C10: 0 | D10: =C10*B10 -> 0 | E10: =0.21*D10 -> 0 | F10: =E10+D10 -> 0
A11: Celkem | B11: 492 | D11: =SUM(D9:D10) -> 0 | E11: =SUM(E9:E10) -> 0 | F11: 0
A13: Sběr svoz a využítí PLAST (objem nádob v litrech) | C13: Bez DPH | D13: celkem | E13: 0.15 | F13: celkem
A14: 52 výklopů ročně | B14: kusů | C14: Kč/ks/rok | D14: Kč bez DPH | E14: Kč DPH | F14: Kč vč. DPH
A15: 1100 - horní výklop | B15: 280 | C15: 0 | D15: =C15*B15 -> 0 | E15: =0.15*D15 -> 0 | F15: =E15+D15 -> 0
A16: 240 - horní výklop | B16: 221 | C16: 0 | D16: =C16*B16 -> 0 | E16: =0.15*D16 -> 0 | F16: =E16+D16 -> 0
A17: Celkem | B17: 501 | D17: =SUM(D15:D16) -> 0 | E17: =SUM(E15:E16) -> 0 | F17: 0
C19: Bez DPH | D19: celkem | E19: 0.15 | F19: celkem
A20: Sběr svoz a využití PLAST 104 výklopů ročně ( objem nádob v litrech) | B20: kusů | C20: Kč/ks/rok | D20: Kč bez DPH | E20: Kč DPH | F20: Kč vč. DPH
A21: 1100 - horní výklop | B21: 21 | C21: 0 | D21: =C21*B21 -> 0 | E21: =0.15*D21 -> 0 | F21: =E21+D21 -> 0
A22: Celkem | B22: 21 | D22: =SUM(D21) -> 0 | E22: =SUM(E21) -> 0 | F22: 0
A25: Rekapitulace plast | D25: kč bez DPH | E25: kč DPH | F25: Kč vč.DPH
A26: Jednorázová instalace Plast | D26: =D5 -> 0 | E26: =E5 -> 0 | F26: 0
A27: Nájem nádob PLAST | D27: =D11 -> 0 | E27: =E11 -> 0 | F27: 0
A28: Sběr, svoz a využití PLAST | D28: =D22+D17 -> 0 | E28: =E22+E17 -> 0 | F28: 0
A29: Celkem | D29: =SUM(D26:D28) -> 0 | E29: =SUM(E26:E28) -> 0 | F29: 0

Sheet Sklobarevné
A1: Jednorázová instalace SKLO barevné | C1: bez DPH | D1: celkem | E1: 0.21 | F1: celkem
A2: Sklo čiré (objem v litrech jedné nádoby) | B2: kusů | C2: Kč/ks | D2: Kč bez DPH | E2: Kč DPH | F2: Kč vč. DPH
A3: 1100 - horní výklop | B3: 6 | C3: 0 | D3: =C3*B3 -> 0 | E3: =0.21*D3 -> 0 | F3: =E3+D3 -> 0
A4: 1100 - spodní výklop | B4: 40 | C4: 0 | D4: =C4*B4 -> 0 | E4: =0.21*D4 -> 0 | F4: =E4+D4 -> 0
A5: 1550 - spodní výklop | B5: 3 | C5: 0 | D5: 0 | E5: 0 | F5: 0
A6: 1700 - spodní výklop | B6: 17 | C6: 0 | D6: 0 | E6: 0 | F6: 0
A7: 240 - horní výklop | B7: 182 | C7: 0 | D7: 0 | E7: 0 | F7: 0
A8: Celkem | B8: 248 | D8: =SUM(D3:D7) -> 0 | E8: =SUM(E3:E7) -> 0 | F8: 0
C10: Bez DPH | D10: celkem | E10: 0.21 | F10: celkem
A11: Nájem nádob sklo barevné | B11: kusů | C11: Kč/ks/rok | D11: Kč bez DPH | E11: Kč DPH | F11: Kč vč. DPH
A12: 1100 - horní výklop | B12: 6 | C12: 0 | D12: =C12*B12 -> 0 | E12: =0.21*D12 -> 0 | F12: =E12+D12 -> 0
A13: 1100 - spodní výklop | B13: 40 | C13: 0 | D13: =C13*B13 -> 0 | E13: =0.21*D13 -> 0 | F13: =E13+D13 -> 0
A14: 1550 - spodní výklop | B14: 3 | C14: 0 | D14: 0 | E14: 0 | F14: 0
A15: 1700 - spodní výklop | B15: 17 | C15: 0 | D15: 0 | E15: 0 | F15: 0
A16: 240 - horní výklop | B16: 182 | C16: 0 | D16: 0 | E16: 0 | F16: 0
A17: Celkem | B17: 248 | D17: =SUM(D12:D16) -> 0 | E17: =SUM(E12:E16) -> 0 | F17: 0
A20: Sběr svoz a využítí Sklo barevné (objem nádob v litrech) | C20: Bez DPH | D20: celkem | E20: 0.15 | F20: celkem
A21: 12 výklopů ročně | B21: kusů | C21: Kč/ks/rok | D21: Kč bez DPH | E21: Kč DPH | F21: Kč vč. DPH
A22: 1100 - horní výklop | B22: 6 | C22: 0 | D22: =C22*B22 -> 0 | E22: =0.15*D22 -> 0 | F22: =E22+D22 -> 0
A23: 1100 - spodní výklop | B23: 40 | C23: 0 | D23: 0 | E23: =0.15*D23 -> 0 | F23: 0
A24: 1550 - spodní výklop | B24: 20 | C24: 0 | D24: 0 | E24: 0 | F24: 0
A25: 1700 - spodní výklop | B25: 17 | C25: 0 | D25: 0 | E25: 0 | F25: 0
A26: 240 - horní výklop | B26: 182 | C26: 0 | D26: 0 | E26: 0 | F26: 0
A27: Celkem | B27: 265 | D27: =SUM(D22:D26) -> 0 | E27: =SUM(E22:E26) -> 0 | F27: 0
A31: Rekapitulace sklo barevné | D31: kč bez DPH | E31: kč DPH | F31: Kč vč.DPH
A32: Jednorázová instalace SKLO barevné | D32: =D8 -> 0 | E32: =E8 -> 0 | F32: 0
A33: Nájem nádob SKLO barevné | D33: =D17 -> 0 | E33: =E17 -> 0 | F33: 0
A34: Sběr, svoz a využití SKLO barevné | D34: =D27 -> 0 | E34: =E27 -> 0 | F34: 0
A35: Celkem | D35: =SUM(D32:D34) -> 0 | E35: =SUM(E32:E34) -> 0 | F35: 0

Sheet Skločiré
A1: Jednorázová instalace SKLO čiré | C1: bez DPH | D1: celkem | E1: 0.21 | F1: celkem
A2: Sklo čiré (objem v litrech jedné nádoby) | B2: kusů | C2: Kč/ks | D2: Kč bez DPH | E2: Kč DPH | F2: Kč vč. DPH
A3: 1100 - horní výklop | B3: 7 | C3: 0 | D3: =C3*B3 -> 0 | E3: =0.21*D3 -> 0 | F3: =E3+D3 -> 0
A4: 1300 - spodní výklop | B4: 4 | C4: 0 | D4: 0 | E4: 0 | F4: 0
A5: 1100 - spodní výklop | B5: 40 | C5: 0 | D5: 0 | E5: 0 | F5: 0
A6: 1550 - spodní výklop | B6: 2 | C6: 0 | D6: 0 | E6: 0 | F6: 0
A7: 1700 - spodní výklop | B7: 17 | C7: 0 | D7: 0 | E7: 0 | F7: 0
A8: 240 - horní výklop | B8: 179 | C8: 0 | D8: 0 | E8: 0 | F8: 0
A9: Celkem | B9: 249 | D9: =SUM(D3:D8) -> 0 | E9: =SUM(E3:E8) -> 0 | F9: 0
C11: Bez DPH | D11: celkem | E11: 0.21 | F11: celkem
A12: Nájem nádob sklo čiré (objem nádob v litrech) | B12: kusů | C12: Kč/ks/rok | D12: Kč bez DPH | E12: Kč DPH | F12: Kč vč. DPH
A13: 1100 - horní výklop | B13: 7 | C13: 0 | D13: =C13*B13 -> 0 | E13: =0.21*D13 -> 0 | F13: =E13+D13 -> 0
A14: 1300 - spodní výklop | B14: 4 | C14: 0 | D14: 0 | E14: 0 | F14: 0
A15: 1100 - spodní výklop | B15: 40 | C15: 0 | D15: 0 | E15: 0 | F15: 0
A16: 1550 - spodní výklop | B16: 2 | C16: 0 | D16: 0 | E16: 0 | F16: 0
A17: 1700 - spodní výklop | B17: 17 | C17: 0 | D17: 0 | E17: 0 | F17: 0
A18: 240 - horní výklop | B18: 179 | C18: 0 | D18: 0 | E18: 0 | F18: 0
A19: Celkem | B19: 249 | D19: =SUM(D13:D18) -> 0 | E19: =SUM(E13:E18) -> 0 | F19: 0
A22: Sběr svoz a využítí Sjlo čiré (objem nádob v litrech) | C22: Bez DPH | D22: celkem | E22: 0.15 | F22: celkem
A23: 12 výklopů ročně | B23: kusů | C23: Kč/ks/rok | D23: Kč bez DPH | E23: Kč DPH | F23: Kč vč. DPH
A24: 1100 - horní výklop | B24: 7 | C24: 0 | D24: =C24*B24 -> 0 | E24: =0.15*D24 -> 0 | F24: =E24+D24 -> 0
A25: 1300 - spodní výklop | B25: 8 | C25: 0 | D25: =C25*B25 -> 0 | E25: =0.15*D25 -> 0 | F25: =E25+D25 -> 0
A26: 1100 - spodní výklop | B26: 40 | C26: 0 | D26: 0 | E26: 0 | F26: 0
A27: 1550 - spodní výklop | B27: 10 | C27: 0 | D27: 0 | E27: 0 | F27: 0
A28: 1700 - spodní výklop | B28: 17 | C28: 0 | D28: 0 | E28: 0 | F28: 0
A29: 240 - horní výklop | B29: 179 | C29: 0 | D29: 0 | E29: 0 | F29: 0
A30: Celkem | B30: 261 | D30: =SUM(D24:D29) -> 0 | E30: =SUM(E24:E29) -> 0 | F30: 0
A34: Rekapitulace sklo čiré | D34: kč bez DPH | E34: kč DPH | F34: Kč vč.DPH
A35: Jednorázová instalace SKLO čiré | D35: =D9 -> 0 | E35: =E9 -> 0 | F35: 0
A36: Nájem nádob SKLO čiré | D36: =D19 -> 0 | E36: =E19 -> 0 | F36: 0
A37: Sběr, svoz a využití SKLO čiré | D37: =D30 -> 0 | E37: =E30 -> 0 | F37: 0
A38: Celkem | D38: =SUM(D35:D37) -> 0 | E38: =SUM(E35:E37) -> 0 | F38: 0

Sheet Kovy
A1: Jednorázová instalace KOVY | C1: bez DPH | D1: celkem | E1: 0.21 | F1: celkem
A2: (objem v litrech jedné nádoby) | B2: kusů | C2: Kč/ks | D2: Kč bez DPH | E2: Kč DPH | F2: Kč vč. DPH
A3: 1800 - spodní výklop | B3: 1 | C3: 0 | D3: =C3*B3 -> 0 | E3: =0.21*D3 -> 0 | F3: =E3+D3 -> 0
A4: Celkem | D4: =SUM(D3) -> 0 | E4: =SUM(E3) -> 0 | F4: 0
C6: Bez DPH | D6: celkem | E6: 0.21 | F6: celkem
A7: Nájem nádob KOVY (objem nádob v litrech) | B7: kusů | C7: Kč/ks/rok | D7: Kč bez DPH | E7: Kč DPH | F7: Kč vč. DPH
A8: 1800 - spodní výklop | B8: 1 | C8: 0 | D8: =C8*B8 -> 0 | E8: =0.21*D8 -> 0 | F8: =E8+D8 -> 0
A9: Celkem | B9: 248 | D9: =SUM(D8) -> 0 | E9: =SUM(E8) -> 0 | F9: 0
A12: Sběr svoz a využítí KOVY (objem nádob v litrech) | C12: Bez DPH | D12: celkem | E12: 0.15 | F12: celkem
A13: 12 výklopů ročně | B13: kusů | C13: Kč/ks/rok | D13: Kč bez DPH | E13: Kč DPH | F13: Kč vč. DPH
A14: 1800 - spodní výklop | B14: 29 | C14: 0 | D14: =C14*B14 -> 0 | E14: =0.15*D14 -> 0 | F14: =E14+D14 -> 0
A15: Celkem | B15: 265 | D15: =SUM(D14) -> 0 | E15: =SUM(E14) -> 0 | F15: 0
A19: Rekapitulace sklo kovy | D19: kč bez DPH | E19: kč DPH | F19: Kč vč.DPH
A20: Jednorázová instalace kovy | D20: =D3 -> 0 | E20: =E3 -> 0 | F20: 0
A21: Nájem nádob kovy | D21: =D8 -> 0 | E21: =E8 -> 0 | F21: 0
A22: Sběr, svoz a využití kovy | D22: =D15 -> 0 | E22: =E15 -> 0 | F22: 0
A23: Celkem | D23: =SUM(D20:D22) -> 0 | E23: =SUM(E20:E22) -> 0 | F23: 0

Sheet Zdroj (hidden)
A1: objem nádoby v litrech | B1: SKO 1xtýdně | C1: SKO 2xtýdně | D1: SKO 3x týdně | E1: zbytk. (svoz 26x) | F1: celkem | J1: bio (svoz 32x)
A2: 1100 | B2: 389 | C2: 54 | D2: 5 | E2: 1 | F2: =SUM(B2:E2) -> 449
A3: 110 | B3: 1160 | E3: 49 | F3: =SUM(B3:E3) -> 1209
A4: 120 | B4: 2381 | C4: 1 | E4: 1635 | F4: 4017 | J4: 1719
A5: 240 | B5: 193 | C5: 13 | E5: 241 | F5: 447 | J5: 133
A6: Celkem | B6: =SUM(B2:B5) -> 4123 | C6: =SUM(C2:C5) -> 68 | D6: 5 | E6: 1926 | F6: =SUM(F2:F5) -> 6122 | J6: =SUM(J2:J5) -> 1852
A8: počet košů v nájmu | B8: 580
A9: město vlastní koše | B9: 109
A10: schránky na sáčky (v nájmu) | B10: 215 | C10: =SUM(B8:B10) -> 904
A12: Počet nádob celkem
A13: Objem nádoby v litrech | B13: papír 1xt | C13: papír 2xt | D13: plast 1xt | E13: plast 2xt | F13: sklo čiré | G13: sklo barevné | H13: kovy | I13: =J1 -> bio (svoz 32x) | J13: celkem
A14: 1100 - horní výklop | B14: 263 | C14: 3 | D14: 280 | E14: 21 | F14: 7 | G14: 6 | J14: =SUM(B14:I14) -> 580
A15: 1300 - spodní výklop | F15: 8 | G15: 0 | J15: =SUM(B15:I15) -> 8
A16: 1100 - spodní výklop | F16: 40 | G16: 40 | J16: 80
A17: 1550 - spodní výklop | F17: 10 | G17: 20 | J17: 30
A18: 1700 - spodní výklop | F18: 17 | G18: 17 | J18: 34
A19: 240 - horní výklop | B19: 199 | D19: 221 | F19: 179 | G19: 182 | I19: 133 | J19: 914
A20: 120 - horní výklop | I20: 1719 | J20: 1719
A21: 660 - horní výklop | I21: 6 | J21: 6
A22: 1800 - spodní výklop | H22: 29 | J22: 29
A23: Celkem | B23: =SUM(B14:B22) -> 462 | C23: 3 | D23: 501 | E23: 21 | F23: 261 | G23: 265 | H23: 29 | I23: 1858 | J23: 3400 | L23: =J23-G32 -> 3038
A25: Z toho počet nádob Ekokom
A26: Celkem | B26: papír | C26: plast | D26: sklo čiré | E26: sklo barevné | F26: kovy | G26: celkem
A27: =A14 -> 1100 - horní výklop | B27: 152 | C27: 9 | G27: =SUM(B27:F27) -> 161
A28: =A15 -> 1300 - spodní výklop | D28: 4 | E28: 0 | G28: =SUM(B28:F28) -> 4
A29: =A17 -> 1550 - spodní výklop | D29: 8 | E29: 17 | G29: 25
A30: 240 - horní výklop | B30: 143 | G30: 143
A31: 1800 - spodní výklop | F31: 29 | G31: 29
A32: Celkem | B32: =SUM(B27:B31) -> 295 | C32: 9 | D32: 12 | E32: 17 | F32: 29 | G32: 362
B34: =SUM(B23:C23) -> 465 | D34: =SUM(D23:E23) -> 522 | F34: =SUM(F23:G23) -> 526
C38: Sako Brno
A42: Jednorázová instalace | C42: jednorázová instalace
A43: SKO 52 výklopů ročně (objem v litrech jedné nádoby) | B43: kusů | C43: Kč bez DPH | D43: Kč DPH | E43: Kč vč. DPH
A44: =A2 -> 1100 | B44: =B2 -> 389
A45: 110 | B45: =B3 -> 1160
A46: 120 | B46: =B4 -> 2381
A47: 240 | B47: =B5 -> 193
A48: Celkem | B48: =SUM(B44:B47) -> 4123
A50: SKO 104 výklopů ročně (objem v litrech jedné nádoby) | B50: kusů
A51: =A2 -> 1100 | B51: =C2 -> 54
A52: =A4 -> 120 | B52: =C4 -> 1
A53: =A5 -> 240 | B53: =C5 -> 13
A54: Celkem | B54: =SUM(B51:B53) -> 68
A56: SKO 156 výklopů ročně (objem v litrech) | B56: kusů
A57: =A51 -> 1100 | B57: =D2 -> 5
A58: Celkem | B58: =SUM(B57:B57) -> 5
A60: Zbytkový odpad 26 výklopů ročně (objem v litrech jedné nádoby) | B60: kusů
A61: =A2 -> 1100 | B61: =E2 -> 1
A62: =A3 -> 110 | B62: =E3 -> 49
A63: =A4 -> 120 | B63: =E4 -> 1635
A64: =A5 -> 240 | B64: =E5 -> 241
A65: Celkem | B65: =SUM(B61:B64) -> 1926
A67: Celkem SKO jednorázová instalace
A70: Nájem nádob | C70: nájem celkem
A71: SKO 52 výklopů ročně (objem v litrech jedné nádoby) | B71: kusů | C71: Kč bez DPH | D71: Kč DPH | E71: Kč vč. DPH
A72: =A44 -> 1100 | B72: =B44 -> 389
A73: =A45 -> 110 | B73: 1160
A74: 120 | B74: 2381
A75: 240 | B75: 193
A76: Celkem | B76: =SUM(B72:B75) -> 4123
A78: SKO 104 výklopů ročně (objem v litrech jedné nádoby) | B78: kusů
A79: =A51 -> 1100 | B79: =B51 -> 54
A80: =A52 -> 120 | B80: 1
A81: 240 | B81: 13
A82: Celkem | B82: =SUM(B79:B81) -> 68
A84: SKO 156 výklopů ročně (objem v litrech) | B84: kusů
A85: =A79 -> 1100 | B85: =B57 -> 5
A86: Celkem | B86: =SUM(B85:B85) -> 5
A88: Zbytkový odpad 26 výklopů ročně (objem v litrech jedné nádoby) | B88: kusů
A89: =A61 -> 1100 | B89: =B61 -> 1
A90: =A62 -> 110 | B90: 49
A91: 120 | B91: 1635
A92: 240 | B92: 241
A93: Celkem | B93: =SUM(B89:B92) -> 1926
A95: Sběr. Svoz a odstranění | C95: sběr,svoz, dostranění
A96: SKO 52 výklopů ročně (objem v litrech jedné nádoby) | B96: kusů | C96: Kč bez DPH | D96: Kč DPH | E96: Kč vč. DPH
A97: =A72 -> 1100 | B97: =B72 -> 389
A98: =A73 -> 110 | B98: 1160
A99: 120 | B99: 2381
A100: 240 | B100: 193
A101: Celkem | B101: =SUM(B97:B100) -> 4123
A103: SKO 104 výklopů ročně (objem v litrech jedné nádoby) | B103: kusů
A104: =A79 -> 1100 | B104: =B79 -> 54
A105: =A80 -> 120 | B105: 1
A106: 240 | B106: 13
A107: Celkem | B107: =SUM(B104:B106) -> 68
A109: SKO 156 výklopů ročně (objem v litrech) | B109: kusů
A110: =A104 -> 1100 | B110: =B85 -> 5
A111: Celkem | B111: =SUM(B110:B110) -> 5
A113: Zbytkový odpad 26 výklopů ročně (objem v litrech jedné nádoby) | B113: kusů
A114: =A89 -> 1100 | B114: =B89 -> 1
A115: =A90 -> 110 | B115: 49
A116: 120 | B116: 1635
A117: 240 | B117: 241
A118: Celkem | B118: =SUM(B114:B117) -> 1926
A120: Rekapitulace SKO | C120: =C96 -> Kč bez DPH | D120: =D96 -> Kč DPH | E120: =E96 -> Kč vč. DPH
A121: =A42 -> Jednorázová instalace
A122: =A70 -> Nájem nádob
A123: =A95 -> Sběr. Svoz a odstranění
A124: Celkem

Sheet SD
A2: Jednorázová dodávka technického vybavení | D2: bez DPH | E2: celkem | F2: 0.21 | G2: celkem
A3: Typ vybavení | B3: objem m3 | C3: počet ks | D3: Kč/ks | E3: Kč bez DPH | F3: Kč DPH | G3: Kč vč. DPH
A4: Abroll - hákový nosič - otevřený kontejner | B4: 10 | C4: 4 | D4: 0 | E4: =D4*C4 -> 0 | F4: =0.21*E4 -> 0 | G4: =F4+E4 -> 0
A5: Abroll - hákový nosič - krytý kontejner | B5: 35 | C5: 7 | D5: 0 | E5: 0 | F5: 0 | G5: 0
A6: Abroll - hákový nosič - otevřený kontejner | B6: 35 | C6: 2 | D6: 0 | E6: 0 | F6: 0 | G6: 0
A7: Abroll - hákový nosič - otevřený kontejner | B7: 20 | C7: 7 | E7: 0 | F7: 0 | G7: 0
A8: Mulda - ramenový nosič - otevřený kontejner | B8: 10 | C8: 7 | D8: 0 | E8: 0 | F8: 0 | G8: 0
A9: Mulda - ramenový nosič - krytý kontejner | B9: 10 | C9: 1 | D9: 0 | E9: 0 | F9: 0 | G9: 0
A10: Horní výklop plasty | B10: 1.1 | C10: 4 | D10: 0 | E10: 0 | F10: 0 | G10: 0
A14: Celkem jednorázová dodávka | C14: =SUM(C4:C13) -> 32 | D14: =SUM(D4:D13) -> 0 | E14: =SUM(E4:E13) -> 0 | F14: =SUM(F4:F13) -> 0 | G14: =SUM(G4:G13) -> 0
A18: Nájem vybavení | D18: bez DPH | E18: celkem | F18: 0.21 | G18: celkem
A19: Typ vybavení | B19: objem m3 | C19: počet ks | D19: Kč/ks/rok | E19: Kč bez DPH | F19: Kč DPH | G19: Kč vč. DPH
A20: Abroll - hákový nosič - otevřený kontejner | B20: 10 | C20: 4 | D20: 0 | E20: =D20*C20 -> 0 | F20: =0.21*E20 -> 0 | G20: =F20+E20 -> 0
A21: Abroll - hákový nosič - krytý kontejner | B21: 35 | C21: 7 | D21: 0 | E21: 0 | F21: 0 | G21: 0
A22: Abroll - hákový nosič - otevřený kontejner | B22: 35 | C22: 2 | D22: 0 | E22: 0 | F22: 0 | G22: 0
A23: Abroll - hákový nosič - otevřený kontejner | B23: 20 | C23: 7 | D23: 0 | E23: 0 | F23: 0 | G23: 0
A24: Mulda - ramenový nosič - otevřený kontejner | B24: 10 | C24: 7 | D24: 0 | E24: 0 | F24: 0 | G24: 0
A25: Mulda - ramenový nosič - krytý kontejner | B25: 10 | C25: 1 | D25: 0 | E25: 0 | F25: 0 | G25: 0
A26: Horní výklop plasty | B26: 1.1 | C26: 4 | D26: 0 | E26: 0 | F26: 0 | G26: 0
A27: Celkem nájem vybavení | C27: =SUM(C20:C26) -> 32 | D27: =SUM(D20:D26) -> 0 | E27: =SUM(E20:E26) -> 0 | F27: =SUM(F20:F26) -> 0 | G27: =SUM(G20:G26) -> 0
A30: Doprava a likvidace odpadu | C30: Kč/t | E30: 0.21
A31: Přehled základních odpadů kategorie "O" | B31: t/rok | C31: bez DPH | D31: Bez DPH | E31: DPH | F31: vč.DPH
A32: 200101 Papír alepenka | B32: 83.505 | C32: 0 | D32: =C32*B32 -> 0 | E32: =0.21*D32 -> 0 | F32: =E32+D32 -> 0
A33: 200139 Plasty | B33: 4.04 | C33: 0 | D33: =C33*B33 -> 0 | E33: =0.21*D33 -> 0 | F33: =E33+D33 -> 0
A34: 200102 Sklo | B34: 25.1 | C34: 0 | D34: 0 | E34: 0 | F34: 0
A35: 160103 Pneumatiky | B35: 41.31 | C35: 0 | D35: 0 | E35: 0 | F35: 0
A36: 170101 Beton | B36: 4.22 | C36: 0 | D36: 0 | E36: 0 | F36: 0
A37: 170102 Cihly | B37: 400 | C37: 0 | D37: 0 | E37: 0 | F37: 0
A38: 170107 Směsi nebo oddělené frakce betonu, cihel, tašek a keramických výrobků neuvedené pod číslem 17 01 06 | B38: 500 | C38: 0 | D38: 0 | E38: 0 | F38: 0
A39: 170904 Směsné stavební a demoliční odpady neuvedené pod čísly 17 09 01, 17 09 02 a 17 09 03 | B39: 2500 | C39: 0 | D39: 0 | E39: 0 | F39: 0
A40: 170405 Železo a ocel | B40: 2.13 | C40: 0 | D40: 0 | E40: 0 | F40: 0
A41: 170604 Izolační materiály neuvedené pod čísly 17 06 01 a 17 06 03 | B41: 36.87 | C41: 0 | D41: 0 | E41: 0 | F41: 0
A42: 200102 Sklo | B42: 39.61 | C42: 0 | D42: 0 | E42: 0 | F42: 0
A43: 200125 Jedlý olej a tuk | B43: 0.298 | C43: 0 | D43: 0 | E43: 0 | F43: 0
A44: 200138 Dřevo neuvedené pod číslem 20 01 37 | B44: 790.642 | C44: 0 | D44: 0 | E44: 0 | F44: 0
A45: 200140 Kovy | B45: 134.08 | C45: 0 | D45: 0 | E45: 0 | F45: 0
A46: 200201 Biologicky rozložitelný odpad | B46: 626.984 | C46: 0 | D46: 0 | E46: 0 | F46: 0
A47: 200307 Objemný odpad | B47: 1480.553 | C47: 0 | D47: 0 | E47: 0 | F47: 0
C48: Kč/t | E48: 0.21
A49: Přehled základních odpadů kategorie "N" | B49: t/rok | C49: bez DPH | D49: Bez DPH | E49: DPH | F49: vč.DPH
A50: 150110 Obaly obsahující zbytky nebezpečných látek nebo obaly těmito látkami znečištěné | B50: 15.623 | C50: 0 | D50: =C50*B50 -> 0 | E50: =0.21*D50 -> 0 | F50: =E50+D50 -> 0
A51: 200114 Kyseliny | B51: 0.045 | C51: 0 | D51: 0 | E51: 0 | F51: 0
A52: 200119 Pesticidy | B52: 0.0143 | C52: 0 | D52: 0 | E52: 0 | F52: 0
A53: 200126 Olej a tuk neuvedený pod číslem 20 01 25 | B53: 1.99 | C53: 0 | D53: 0 | E53: 0 | F53: 0
A54: 200127 Barvy, tiskařské barvy, lepidla a pryskyřice obsahující nebezpečné látky | B54: 0.309 | C54: 0 | D54: 0 | E54: 0 | F54: 0
A55: 200132 Jiná nepoužitelná léčiva neuvedená pod číslem 20 01 31 | B55: 0.1 | C55: 0 | D55: 0 | E55: 0 | F55: 0
A56: 200133 Baterie a akumulátory, zařazené pod čísly 16 06 01, 16 06 02 nebo pod číslem 16 06 03 a netříděné baterie a akumulátory obsahující tyto baterie | B56: 0.111 | D56: 0 | E56: 0 | F56: 0
A57: Celkem | B57: =SUM(B32:B56) -> 6687.5343 | D57: =SUM(D50:D56)+SUM(D32:D47) -> 0 | E57: =SUM(E50:E56)+SUM(E32:E47) -> 0 | F57: 0
A59: Fixní náklady spojené s provozem | D59: Bez DPH | E59: DPH | F59: vč.DPH
A60: Osobní náklady ( min. 3 osoby, stočné 3884m3, slektřina 14167 Kwh nízký tarif, 34023 kWh vysoký tarif.) | E60: =0.21*D60 -> 0 | F60: =E60+D60 -> 0
A61: Celkem
A63: Rekapitulace SD | D63: kč bez DPH | E63: kč DPH | F63: Kč vč.DPH
A64: Jednorázová instalace | D64: =D14 -> 0 | E64: =E14 -> 0 | F64: 0
A65: Nájem nádob | D65: =E27 -> 0 | E65: =F27 -> 0 | F65: 0
A66: Sběr, svoz a odstranění | D66: =D57 -> 0 | E66: =E57 -> 0 | F66: 0
A67: Fizxní náklady | D67: =D60 -> 0 | E67: =E60 -> 0 | F67: 0
A68: Celkem | D68: =SUM(D64:D67) -> 0 | E68: =SUM(E64:E67) -> 0 | F68: 0

Sheet Koše
A1: Jednorázová instalace košů | E1: 0.21
A2: (objem v litrech jedné nádoby) | B2: kusů | D2: Kč bez DPH | E2: Kč DPH | F2: Kč vč. DPH
A3: City Bin 40 l | B3: 406 | C3: 0 | D3: =C3*B3 -> 0 | E3: =D3*0.21 -> 0 | F3: =E3+D3 -> 0
A4: Kopenhagen 70 l | B4: 36 | C4: 0 | D4: =C4*B4 -> 0 | E4: =D4*0.21 -> 0 | F4: =E4+D4 -> 0
A5: Historický 30l | B5: 103 | C5: 0 | D5: 0 | E5: 0 | F5: 0
A6: Popelník 70l | B6: 10 | C6: 0 | D6: 0 | E6: 0 | F6: 0
A7: Klasik 50l | B7: 4 | C7: 0 | D7: 0 | E7: 0 | F7: 0
A8: Kamenina 50l | B8: 4 | C8: 0 | D8: 0 | E8: 0 | F8: 0
A9: Slza 30l | B9: 1 | C9: 0 | D9: 0 | E9: 0 | F9: 0
A10: Pytlový systém 100l | B10: 28 | C10: 0 | D10: 0 | E10: 0 | F10: 0
A11: Schránky na sáčky | B11: 280 | C11: 0 | D11: 0 | E11: 0 | F11: 0
A12: Celkem | B12: =SUM(B3:B11) -> 872 | D12: =SUM(D3:D11) -> 0 | E12: =SUM(E3:E11) -> 0 | F12: 0
E14: 0.21
A15: Nájem nádob KOŠE | B15: kusů | C15: Kč/ks/rok | D15: Kč bez DPH | E15: Kč DPH | F15: Kč vč. DPH
A16: City Bin 40 l | B16: 406 | C16: 0 | D16: =C16*B3 -> 0 | E16: =0.21*D16 -> 0 | F16: =E16+D16 -> 0
A17: Kopenhagen 70 l | B17: 36 | C17: 0 | D17: =C17*B4 -> 0 | E17: =0.21*D17 -> 0 | F17: =E17+D17 -> 0
A18: Historický 30l | B18: 103 | C18: 0 | D18: 0 | E18: 0 | F18: 0
A19: Popelník 70l | B19: 10 | C19: 0 | D19: 0 | E19: 0 | F19: 0
A20: Klasik 50l | B20: 4 | C20: 0 | D20: 0 | E20: 0 | F20: 0
A21: Slza 30l | B21: 1 | C21: 0 | D21: 0 | E21: 0 | F21: 0
A22: Kamenina | B22: 4 | C22: 0 | D22: 0 | E22: 0 | F22: 0
A23: Pytlový systém 100l | B23: 28 | C23: 0 | D23: 0 | E23: 0 | F23: 0
A24: Schránky na sáčky | B24: 280 | C24: 0 | D24: 0 | E24: 0 | F24: 0
A25: Celkem | B25: =SUM(B16:B24) -> 872 | D25: =SUM(D16:D24) -> 0 | E25: =SUM(E16:E24) -> 0 | F25: 0
A28: Sběr svoz a odstranění odpadu z košů | C28: počet | F28: 0.21
B29: m.j. | C29: m.j. | D29: Kč/mj | E29: Kč bez DPH | F29: Kč DPH | G29: Kč vč. DPH
A30: Počet hodin na vyprázdnění všech košů pracovní dny za týden (Po -Pá) | B30: hod | C30: =52*56 -> 2912 | D30: 0 | E30: =D30*C30 -> 0 | F30: =E30*0.21 -> 0 | G30: =F30+E30 -> 0
A31: Počet hodin na vyprázdnění všech košů za týden - (So) | B31: hod | C31: =5*52 -> 260 | D31: 0 | E31: =D31*C31 -> 0 | F31: =E31*0.21 -> 0 | G31: =F31+E31 -> 0
A32: Doprava k likvidaci - Kč/den (250 dnů v roce) | B32: Kč/den | C32: 250 | D32: 0 | E32: =D32*C32 -> 0 | F32: 0 | G32: 0
A33: Likvidace odpadu | B33: tun | C33: 165 | D33: 0 | E33: =D33*C33 -> 0 | F33: 0 | G33: 0
A34: Celkem | E34: =SUM(E30:E33) -> 0 | F34: =SUM(F30:F33) -> 0 | G34: 0
A37: Rekapitulace koše | D37: kč bez DPH | E37: kč DPH | F37: Kč vč.DPH
A38: Jednorázová instalace | D38: =D12 -> 0 | E38: =E12 -> 0 | F38: 0
A39: Nájem nádob | D39: =D25 -> 0 | E39: =E25 -> 0 | F39: 0
A40: Sběr, svoz a odstranění | D40: =E34 -> 0 | E40: =F34 -> 0 | F40: 0
A41: Celkem | D41: =SUM(D39:D40) -> 0 | E41: =SUM(E39:E40) -> 0 | F41: 0

Sheet Mobilni
A1: Požadovaný počet hodin | B1: místní části | C1: město | D1: Celkem
A2: počet lokalit | B2: 10 | C2: 11 | D2: =SUM(B2:C2) -> 21
A3: Minimální čas ma stanovišti v hodinách | B3: 4 | C3: 7 | D3: =SUM(B3:C3) -> 11
A4: Roční počet cyklů na stanovišti | B4: 4 | C4: 3 | D4: 7
A5: Celkem roční počet hodin | B5: =B4*B3*B2 -> 160 | C5: =C4*C3*C2 -> 231 | D5: 391
E7: 0.21
A8: Technické vybavení a personální obsazení na stanovišti | B8: Počet hodin ročně | C8: Kč/hod | D8: celkem bez DPH | E8: DPH | F8: Kč vč. DPH
A9: Kontejner 20m3 - bioodpad | B9: =D5 -> 391 | C9: 0 | D9: =C9*B9 -> 0 | E9: =0.21*D9 -> 0 | F9: =E9+D9 -> 0
A10: Kontejner 20m3 - velkoobjemový odpad | B10: =B9 -> 391 | C10: 0 | D10: =C10*B10 -> 0 | E10: =0.21*D10 -> 0 | F10: =E10+D10 -> 0
A11: Dodávkové vozidlo min 10m3 | B11: =B10 -> 391 | C11: 0 | D11: 0 | E11: 0 | F11: 0
A12: 2 osoby | B12: =B11 -> 391 | C12: 0 | D12: 0 | E12: 0 | F12: 0
A13: Celkem | D13: =SUM(D9:D12) -> 0 | E13: =SUM(E9:E12) -> 0 | F13: =SUM(F9:F12) -> 0
E15: 0.21
A16: Náklady na dopravu a likvidaci odpadu | B16: tun ročně | C16: Kč/t | D16: Kč bez DPH | E16: Kč DPH | F16: Kč vč. DPH
A17: 150110 Obaly obsahující zbytky nebezpečných látek nebo obaly těmito látkami znečištěné | B17: 2.924 | C17: 0 | D17: =C17*B17 -> 0 | E17: =0.21*D17 -> 0 | F17: =E17+D17 -> 0
A18: 200119 Pesticidy | B18: 0.116 | C18: 0 | D18: =C18*B18 -> 0 | E18: =0.21*D18 -> 0 | F18: =E18+D18 -> 0
A19: 200126 Olej a tuk neuvedený pod číslem 20 01 25 | B19: 0.295 | C19: 0 | D19: 0 | E19: 0 | F19: 0
A20: 200127 Barvy, tiskařské barvy, lepidla a pryskyřice obsahující nebezpečné látky | B20: 0.005 | C20: 0 | D20: 0 | E20: 0 | F20: 0
A21: 200132 Jiná nepoužitelná léčiva neuvedená pod číslem 20 01 31 | B21: 0.0255 | C21: 0 | D21: 0 | E21: 0 | F21: 0
A22: 160103 Pneumatiky | B22: 3.252 | C22: 0 | D22: 0 | E22: 0 | F22: 0
A23: 170604 Izolační materiály neuvedené pod čísly 17 06 01 a 17 06 03 | B23: 2 | C23: 0 | D23: 0 | E23: 0 | F23: 0
A24: 200125 Jedlý olej a tuk | B24: 0.133 | C24: 0 | D24: 0 | E24: 0 | F24: 0
A25: 200201 Biologicky rozložitelný odpad | B25: 29.48 | C25: 0 | D25: 0 | E25: 0 | F25: 0
A26: 200307 Objemný odpad | B26: 178.09 | C26: 0 | D26: 0 | E26: 0 | F26: 0
A27: Celkem | B27: =SUM(B21:B26) -> 212.9805 | D27: =SUM(D17:D26) -> 0 | E27: =SUM(E17:E26) -> 0 | F27: 0
A30: Rekapitulace mobilni svozy | D30: kč bez DPH | E30: kč DPH | F30: Kč vč.DPH
A31: Náklady na vybavení stanoviště | D31: =D13 -> 0 | E31: =E13 -> 0 | F31: =F13 -> 0
A32: Náklady na dopravu a likvidaci odpadu | D32: =D27 -> 0 | E32: =E27 -> 0 | F32: =F27 -> 0
A33: Celkem | D33: =SUM(D31:D32) -> 0 | E33: =SUM(E31:E32) -> 0 | F33: 0

Sheet Polopodzemni
E4: 0.21
A5: Náklady na dopravu a likvidaci odpadu | B5: Ks | C5: Kč/ks | D5: Kč bez DPH | E5: Kč DPH | F5: Kč vč. DPH
A6: Polopodzemní kontejnery Směsný komunální odpad - objem 5m3 | C6: 0 | D6: =C6*B6 -> 0 | E6: =0.21*D6 -> 0 | F6: =E6+D6 -> 0
A7: Polopodzemní kontejnery Papír - objem 5m3 | C7: 0 | D7: =C7*B7 -> 0 | E7: =0.21*D7 -> 0 | F7: =E7+D7 -> 0
A8: Polopodzemní kontejnery Plast - objem 5m3 | C8: 0 | D8: 0 | E8: 0 | F8: 0
A9: Polopodzemní kontejnery Sklo - objem 3m3 | C9: 0 | D9: 0 | E9: 0 | F9: 0
A10: Podzemní kontejnery Směsný komunální odpad - objem 5m3 | C10: 0 | D10: 0 | E10: 0 | F10: 0
A11: Podzemní kontejnery Papír - objem 5m3 | C11: 0 | D11: 0 | E11: 0 | F11: 0
A12: Podzemní kontejnery Plast - objem 5m3 | C12: 0 | D12: 0 | E12: 0 | F12: 0
A13: Podzemní kontejnery Sklo - objem 3m3 | C13: 0 | D13: 0 | E13: 0 | F13: 0
A14: Celkem | B14: =SUM(B10:B13) -> 0 | D14: =SUM(D6:D13) -> 0 | E14: =SUM(E6:E13) -> 0 | F14: =SUM(F6:F13) -> 0
